Cogmind - Beta 15 @@@ ROGUE MODE // 2025.05.31 @ 02:01:48 Player: Xenocore Result: Destroyed by 7B-5BR(R) with Subdweller Beam Cannon Performance ------------- Evolutions (0) 0 Regions Visited (2) 400 Robots Destroyed (33) 165 Value Destroyed (954) 954 Prototype IDs (6) 120 Alien Tech Used (0) 0 Bonus (0) 0 TOTAL SCORE: 1639 Bonus ------- None Cogmind --------- Core Integrity 0/250 Matter 69/300 Energy 100/100 System Corruption 0% Temperature Cool (9) Movement Walking (190) Ox1 Location -10/Subcaves Parts ------- > --- POWER (1) -------- (None) > --- PROPULSION (2) --- Aluminum Leg > --- UTILITY (2) ------ Medium Storage Unit Signal Interpreter > --- WEAPON (2) ------- Improved Light Cannon > --- INVENTORY (10) --- Aluminum Leg Aluminum Leg Aluminum Leg Large Storage Unit Field Recycling Unit (0) Battle Rifle Rocket Launcher Rocket Launcher Rocket Launcher Peak State ------------ > --- POWER ------------ Light Nuclear Core > --- PROPULSION ------- Aluminum Leg Aluminum Leg > --- UTILITY ---------- Small Storage Unit Signal Interpreter > --- WEAPON ----------- Improved Light Cannon Improved Light Cannon > --- INVENTORY -------- Light Ion Engine Aluminum Leg Propulsion Shielding Improved Light Cannon Improved Light Cannon Rocket Launcher Rocket Launcher Rocket Launcher [Rating: 12] Favorites ----------- Power Light Ion Engine Engine Light Ion Engine Power Core Light Nuclear Core Propulsion Aluminum Leg Leg Aluminum Leg Wheel Wheel Utility Signal Interpreter Device ECM Suite Storage Medium Storage Unit Processor Signal Interpreter Weapon Improved Light Cannon Energy Gun Small Laser Ballistic Gun Assault Rifle Ballistic Cannon Improved Light Cannon Launcher Rocket Launcher Build | -11 -10 -10 ------- Run | Yrd Mat Sub Slots Evolved . | . . . Power . | . . . Propulsion . | . . . Utility . | . . . Weapon . | . . . Parts Attached 23 | 8 12 3 Power 3 | 2 1 . Engine 2 | 2 . . Core 1 | . 1 . Reactor . | . . . Propulsion 6 | 3 3 . Treads . | . . . Leg 5 | 2 3 . Wheel 1 | 1 . . Hover . | . . . Flight . | . . . Utility 4 | 1 3 . Device 1 | . 1 . Storage 2 | 1 1 . Processor 1 | . 1 . Hackware . | . . . Protection . | . . . Artifact . | . . . Weapon 10 | 2 5 3 Energy Gun 1 | 1 . . Energy Cannon . | . . . Ballistic Gun 2 | 1 1 . Ballistic Cannon 3 | . 2 1 Launcher 4 | . 2 2 Special Weapon . | . . . Impact Weapon . | . . . Slashing Weapon . | . . . Piercing Weapon . | . . . Special Melee Weapon . | . . . Unidentified Prototypes . | . . . Parts Lost 5 | . . 5 Power 2 | . . 2 Propulsion 1 | . . 1 Utility . | . . . Weapon 2 | . . 2 Highest Loss Streak 4 | . . 4 To Critical Strikes . | . . . Average Backups 8 | 1 8 9 Power . | . 1 . Propulsion 2 | . 1 3 Utility 1 | . 1 2 Weapon 4 | . 4 4 Tool/Special . | . . . Unused Backups 10 | . 4 6 Power . | . . . Propulsion 2 | . . 2 Utility 3 | . 1 2 Weapon 5 | . 3 2 Tool/Special . | . . . Average Slot Usage (%) 99 | . 99 99 Engine 9 | . 5 13 Core 4 | . 8 . Leg 27 | . 28 27 Storage 14 | . 14 14 Processor 13 | . 13 14 Ballistic Cannon 19 | . 23 14 Launcher 6 | . . 12 Peak Build Rating 12 | 6 12 12 Average Rating 10 | 4 10 10 On Entrance 6 | . 6 12 Naked Turns . | . . . Heaviest Build 23 | 13 23 23 Greatest Support 20 | 20 20 20 Greatest Overweight (x) 1 | . 1 1 Average Overweight (x) . | . . . Largest Inventory Capacity 10 | 8 10 10 Average Capacity 9 | 6 8 10 Most Carried 10 | 2 10 10 Average Carried 8 | 1 8 9 Final Capacity 10 | 8 10 10 Final Carried 10 | 2 10 9 Class Distribution -------------------- 100% | Mutant Dominant Class ---------------- Mutant | -10/Materials Mutant | -10/Subcaves Resources | -11 -10 -10 ----------- Run | Yrd Mat Sub Matter Collected 909 | 267 486 156 Remotely . | . . . Salvage Created 641 | . 439 202 Parts 42 | . 24 18 Haulers Intercepted . | . . . Recyclers Shooed . | . . . Parts Field Recycled . | . . . Retrieved Matter . | . . . Parts Self-Destructed 11 | . . 11 Prevented . | . . . Kills | -11 -10 -10 ------- Run | Yrd Mat Sub Combat Hostiles Destroyed 26 | . 14 12 Guns 3 | . 3 . Cannons 9 | . 6 3 AOE 14 | . 5 9 Classes Destroyed 6 | . 4 2 Operator 2 | . 2 . Turret 2 | . . 2 Watcher 3 | . 3 . Swarmer 7 | . 3 4 Grunt 13 | . 11 2 Subdweller 6 | . . 6 Best Kill Streak 6 | . 6 6 Combat Bots Only 5 | . 5 4 Max Kills in Single Turn 3 | . 1 3 Gunslinging . | . . . Exploded 3 | . 1 3 Melee . | . . . Uniques/NPCs Destroyed . | . . . Combat | -11 -10 -10 -------- Run | Yrd Mat Sub Hostile Shots Fired 110 | . 50 60 Missed 36 | . 13 23 Hits 74 | . 37 37 Projectile 74 | . 37 37 Critical Strikes 1 | . . 1 Damage Taken 1077 | . 468 609 Core 273 | . 110 163 Absorbed by Shields . | . . . Core Remaining (%) 100 | 100 . . Volleys Fired 71 | . 43 28 Largest 2 | . 2 2 Hottest 66 | . 66 66 Shots Fired 133 | . 86 47 Gun 27 | . 27 . Cannon 77 | . 52 25 Launcher 29 | . 7 22 Special . | . . . Kinetic 92 | . 67 25 Thermal 12 | . 12 . Explosive 29 | . 7 22 Electromagnetic . | . . . Robot Hit Streak 11 | . 8 11 Robot Miss Streak 4 | . 4 3 Penetration Max . | . . . Secondary Targets . | . . . Shots Hit Robots 73 | . 43 30 Core Hits 53 | . 30 23 Critical Kills . | . . . Critical Parts Destroyed . | . . . Critical Strikes 4 | . 3 1 Blast 4 | . 3 1 Melee Attacks . | . . . Impact . | . . . Slashing . | . . . Piercing . | . . . Sneak Attacks . | . . . Combat Hostiles . | . . . Follow-up Attacks . | . . . Damage Inflicted 2609 | . 1185 1424 Guns 177 | . 177 . Cannons 968 | . 609 359 Explosions 1464 | . 399 1065 Melee . | . . . Ramming . | . . . Kinetic 1070 | . 711 359 Thermal 75 | . 75 . Explosive 1464 | . 399 1065 Electromagnetic . | . . . Impact . | . . . Slashing . | . . . Piercing . | . . . Highest Corruption . | . . . Average Corruption . | . . . Corruption Purged . | . . . Corruption Blocked . | . . . Overload Shots . | . . . Overflow Damage 21 | . 11 10 Projectiles . | . . . Explosions 21 | . 11 10 Melee . | . . . Knockbacks 10 | . 6 4 Impact . | . . . Kinetic 10 | . 6 4 Secondary . | . . . Self-Inflicted Damage 12 | . 11 1 Shots 2 | . 1 1 Rammed . | . . . Targets Rammed . | . . . Kicked . | . . . Crushed . | . . . Highest Temperature 162 | . 162 6 Average Temperature 39 | . 39 6 Received Heat Transfer 417 | . 204 213 Siege Activations . | . . . Martial Activations . | . . . Shielding Activations . | . . . Robots Disrupted . | . . . Combat Hostiles . | . . . Robots Corrupted . | . . . Combat Hostiles . | . . . Parts Fried . | . . . Impact Corruptions . | . . . Robots Melted . | . . . Combat Hostiles . | . . . Parts Melted 2 | . 2 . Heat Transferred 175 | . 175 . Parts Sabotaged . | . . . Parts Stolen . | . . . Parts Stripped . | . . . Power Chain Reactions . | . . . Alert | -11 -10 -10 ------- Run | Yrd Mat Sub Maximum Alert Level . | . . . Low Security (%) 100 | 100 100 . Level 1 . | . . . Level 2 . | . . . Level 3 . | . . . Level 4 . | . . . Level 5 . | . . . High Security . | . . . Max Security . | . . . Peak Influence 185 | . 185 . Initial . | . . . Average 52 | . 54 . Influence Increases 634 | . 449 185 Destroy 0b10 Robot/C 440 | . 280 160 Destroy 0b10 Robot/NC 25 | . 25 . Destroy Leader 76 | . 66 10 Successful Hack 27 | . 27 . Disable Machine 15 | . 15 . Destroy Structure 36 | . 36 . Lose Combat Pursuer 15 | . . 15 Influence Decreases 634 | . 437 197 Entered New Map 7 | . . 7 Time Decay 627 | . 437 190 Squads Dispatched 2 | . 2 . Investigation 1 | . 1 . Extermination . | . . . Reinforcement 1 | . 1 . Assault . | . . . Garrison . | . . . Intercept . | . . . Searches Triggered . | . . . Construction Impeded . | . . . Haulers Reinforced . | . . . Active Scanning Responses . | . . . Cargo Convoy Interrupts . | . . . Stealth | -11 -10 -10 --------- Run | Yrd Mat Sub Distress Signals 1 | . 1 . Communications Jammed . | . . . Distress Signals . | . . . Times Spotted 36 | . 20 16 Peak Tracking Total 6 | . 4 6 Tactical Retreats 1 | . . 1 Traps | -11 -10 -10 ------- Run | Yrd Mat Sub Traps Triggered 3 | . 2 1 Indirectly . | . . . Trap Hack Attempts . | . . . Triggered . | . . . Disarmed 10 | . 10 . Reprogrammed . | . . . Reused . | . . . Traps Extracted . | . . . Installed . | . . . Triggered . | . . . Machines | -11 -10 -10 ---------- Run | Yrd Mat Sub Machines Disabled 5 | . 1 4 Max in Single Turn 2 | . 1 2 Machines Repaired . | . . . Machines Dismantled . | . . . Machines Sabotaged . | . . . Overloaded Fab Kills . | . . . Hacking | -11 -10 -10 --------- Run | Yrd Mat Sub Machines Accessed 9 | . 7 2 Terminals 7 | . 7 . Fabricators . | . . . Repair Stations . | . . . Recycling Units . | . . . Scanalyzers . | . . . Garrison Access . | . . . Total Hacks 25 | . 23 2 Successful 13 | . 11 2 Failed 11 | . 11 . Catastrophic 3 | . 3 . Database Lockouts 1 | . 1 . Manual 3 | . 3 . Terminals 23 | . 23 . Fabricators . | . . . Repair Stations . | . . . Recycling Units . | . . . Scanalyzers . | . . . Garrison Access . | . . . Terminal Hacks 13 | . 11 2 Record 3 | . 2 1 Robot Analysis 1 | . 1 . Prototype ID Bank 3 | . 3 . Open Door 1 | . . 1 Locate Traps 2 | . 2 . Disarm Traps 2 | . 2 . Zone Layout 1 | . 1 . Fabricator Hacks . | . . . Repair Station Hacks . | . . . Recycling Unit Hacks . | . . . Scanalyzer . | . . . Garrison Access Hacks . | . . . Unauthorized Hacks . | . . . Terminals . | . . . Fabricators . | . . . Repair Stations . | . . . Recycling Units . | . . . Scanalyzers . | . . . Garrison Access . | . . . Data Cores Recovered 1 | . 1 . Used 1 | . 1 . Hacking Detections 4 | . 4 . Full Trace Events . | . . . Feedback Events . | . . . Feedback Blocked . | . . . Robot Schematics Acquired . | . . . Robots Built . | . . . Authchips . | . . . Time . | . . . Total Robot Build Rating . | . . . Part Schematics Acquired . | . . . Parts Built . | . . . Authchips . | . . . Time . | . . . Total Part Build Rating . | . . . Parts Repaired . | . . . Time . | . . . Parts Recycled . | . . . Recycled Matter . | . . . Retrieved Matter . | . . . Retrieved Components . | . . . Parts Scanalyzed . | . . . Part Schematics Acquired . | . . . Parts Damaged . | . . . Bothacking | -11 -10 -10 ------------ Run | Yrd Mat Sub Used RIF Installer . | . . . Robots Hacked . | . . . Non-combat . | . . . Combat . | . . . Robot Hacks Applied . | . . . Relay Couplers Released . | . . . Fabnet Peak Effective % . | . . . Robots Rewired . | . . . Allies Hacked . | . . . Hacks Repelled . | . . . Allies | -11 -10 -10 -------- Run | Yrd Mat Sub Total Allies . | . . . Largest Group . | . . . Highest-Rated Group . | . . . Highest-Rated Ally . | . . . Total Orders . | . . . Ally Attacks . | . . . Total Damage . | . . . Kills . | . . . Allies Corrupted . | . . . Allies Melted . | . . . Intel | -11 -10 -10 ------- Run | Yrd Mat Sub Active Infowar (turns) 11 | . 11 . ECM 11 | . 11 . Robot Analysis Total 1 | . 1 . Derelict Logs Recovered . | . . . Drone Launches . | . . . Drone Recoveries . | . . . Exploration | -11 -10 -10 ------------- Run | Yrd Mat Sub Turns Passed 3172 | 55 1554 1563 Spaces Moved 1842 | 40 1023 779 Core 7 | 7 . . Treads . | . . . Legs 1833 | 31 1023 779 Wheels 2 | 2 . . Hover . | . . . Flight . | . . . Fastest Speed 50 | 50 120 120 Average Speed 155 | 105 132 189 Slowest Speed 190 | 120 190 190 Overloaded Moves . | . . . Propulsion Burnouts . | . . . Robots Hopped . | . . . Potential Cave-ins . | . . . Cave-ins Triggered . | . . . Exploration Rate (%) 48 | 5 99 42 Regions Visited 2 Branch Regions 1 Pre-discovered Areas . | . . . Known Exits Taken 1 | . 1 . Unknown Exits Taken 1 | 1 . . Scrap Searched 1 | . . 1 Spaces Dug 9 | . . 9 Terrain Destroyed 128 | . 34 94 Melee . | . . . Projectile 2 | . 2 . AOE 126 | . 32 94 Terrain Rammed . | . . . Walls Destroyed . | . . . Machines Disabled . | . . . Actions | -11 -10 -10 --------- Run | Yrd Mat Sub Total 2014 | 49 1144 821 Wait 35 | . 28 7 Move 1840 | 39 1022 779 Hop . | . . . Pick Up 21 | 1 19 1 Fast Attach 8 | 7 1 . Attach 5 | . 3 2 Detach . | . . . Swap 17 | 1 12 4 Drop 17 | 1 16 . Fire 71 | . 43 28 Melee . | . . . Ram . | . . . Kick . | . . . Crush . | . . . Escape Stasis . | . . . Rewire . | . . . Trap . | . . . Miscellaneous . | . . . Route ------- -11/Scrapyard -10/Materials (discovered 6 exits: *Mat x3 / *Min x2 / *Sub) -10/Subcaves (discovered 1 exit: *Rec) History --------- Turn | Location | Event 12 | -11/Scrapyard | Discovered new exit (range 16) 56 | -11/Scrapyard | Entered Materials 266 | -10/Materials | Discovered new exit (range 16) 312 | -10/Materials | Build established: Mutant 379 | -10/Materials | Identified exit to Materials 450 | -10/Materials | Discovered new exit (range 13) 518 | -10/Materials | Identified exit to Mines 583 | -10/Materials | Discovered new exit (range 6) 588 | -10/Materials | Identified exit to Subcaves 899 | -10/Materials | Discovered exit to Materials (range 11) 939 | -10/Materials | Central database locked down 981 | -10/Materials | Discovered exit to Mines (range 15) 1125 | -10/Materials | Discovered exit to Materials (range 3) 1610 | -10/Materials | Entered Subcaves 1740 | -10/Subcaves | Core integrity fell below 50% 1892 | -10/Subcaves | Disturbed a concealed Subdweller 2354 | -10/Subcaves | Discovered new exit (range 15) 2378 | -10/Subcaves | Identified exit to Recycling 2556 | -10/Subcaves | A swath of the cavern ceiling suddenly collapsed 3131 | -10/Subcaves | Core integrity fell below 20% 3173 | -10/Subcaves | Destroyed by 7B-5BR(R) with Subdweller Beam Cannon Last Messages --------------- A swath of the cavern ceiling suddenly collapses. 02760_ Triggered Shrapnel Trap. 02760_ An expanding cloud of shrapnel blasts out in all directions. 02768_ Acquired 16 matter. 02814_ Acquired 13 matter. 03135_ SW-V3T(R) destroyed. 03144_ Subatomizers dissect the Sub. Monowheel. 03144_ JU-U9Z(R) destroyed. 03149_ Acquired 26 matter. 03152_ Acquired 38 matter. 03153_ Imp. Light Cannon destroyed. 03159_ Subatomizers dissect the Sub. Monowheel. 03160_ 7B-5BR(R) knocked back. 03163_ Aluminum Leg destroyed. 03163_ Lgt. Ion Engine destroyed. 03166_ 7B-5BR(R) affixes Scrap Shield Fragment to Scrap Shield. 03167_ 7B-5BR(R) knocked back. 03167_ Imp. Light Cannon destroyed. 03170_ Subatomizers dissect the Sub. Monowheel. 03172_ 7B-5BR(R) knocked back. Map ----- +----------------------------------------------------+ | ##????# ## ##### # ###???????? | | #?????# #####???# ## # ##?????????? | | #####?## ##??????# ### ###?? ??????? | | ## ## #??????##### ##?? #??????? | | ##?????????# #?# #??????? | | ## #??????????# ## #???????? | | ## #### # ##?????????## ## #???????? | | ## ##??#### ###????????## ## #??? ???? | | ### ###??????## ##???????# ## ### ? | | "## #?????#### ##??????# #? | | ### ????## ####??## #? | | ### ??## #??# ? | | #??# ?# ## ### ? | | ^##??? ### #### ##?# ##?? | | #???? #?# #??##??## ##??? | | #????###### ##???????#### ##???? | | ##??####### ##??????????## #????? | | #???# ## # #???????????# #????? | | ##???# #######??????# #???? | | ###### ## ##?????## ## #??? | | ## # ## ##????## #? ### ??? | | ###### ##???# ##? ##???# ???? | | ## ## ##??# #### #?????????? | | ## #??#*% ### #######????? | | ###;%! ##### ##???? | | #### @ ! [R ### #???? | | ### ## != ## ## #????? | | ### ## ### *### #?????? | | ######?# ### ### ### ##?????? | | ###??????# ## ## ###?## ##??????? | | ????????## ####????# #???????? | | ???????## ###???????# #???????? | | ?####### ##???????## #???????? | | ?# ## #???????# #???????? | | ?# ###???????# ### ### #???????? | | ?## #?????????####?####??##???????? | | ??## ###?????????????????????????????? | | ???## #####???????????????????????????????? | | ????#### ##???????????????????????????????????? | | ???????## ##????????????????????????????????????? | | ????????####?????????????????????????????????????? | | ?????????????????????????????????????????????????? | | ?????????????????????????????????????????????????? | | ?????????????????????????????????????????????????? | | ?????????????????????????????????????????????????? | | ?????????????????????????????????????????????????? | | ?????????????????????????????????????????????????? | | ?????????????????????????????????????????????????? | | ?????????????????????????????????????????????????? | | ?????????????????????????????????????????????????? | +----------------------------------------------------+ Best States ------------- Heat Dissipation 25 Energy Generation 14 Energy Capacity 250 Matter Stores 300 Matter Capacity 300 Sight Range 16 Terrain Scan Density 10 ECM Strength 1 Evasion (%) 55 Item Schematics ----------------- None Robot Schematics ------------------ None Fabricated ------------ Nothing Repaired ---------- Nothing Alien Tech Used ----------------- None Achievements -------------- Dynamic Key Challenges ------------ None Game ------ Seed SiegeProtonKinecellerator Manual? 0 Play Time 00:25:28 Cumulative 7.4 hours Start 2025.05.31 @ 01:36:23 End 2025.05.31 @ 02:01:48 Sessions 1 Manual Loads 0 Difficulty Rogue Special Mode None Game No. 7 Rogue 7 Adventurer 0 Explorer 0 Win Type - Total 0 Types 0/0/0/0/0/0/0/0/0/0 Lore% 2 Gallery% 7 Achievement% 7 Wizard Run 0 Options --------- Layout 0 ASCII 0 Keyboard 0 Movement Mouse Keybinds 0 Fullscreen 1 Font 18/SmallcapsGlow Map View 76x50 Zoom Use 0% Tactical HUD 1 Map Filters NONE Filters NONE Steam X RUN: 1c6b8fa8-91e2-41b2-aad7-66abf10fb367